Cogmind - Beta 14 @@@ ROGUE MODE // 2024.10.20 @ 19:59:59 Player: MadBadger Result: Destroyed by G-47 Trooper with Particle Gun Performance ------------- Evolutions (1) 500 Regions Visited (5) 1000 Robots Destroyed (51) 255 Value Destroyed (1572) 1572 Prototype IDs (2) 40 Alien Tech Used (0) 0 Bonus (46) 46 TOTAL SCORE: 3413 Bonus ------- High Alert Combat Kills 46 Cogmind --------- Core Integrity 0/400 Matter 288/300 Energy 100/100 System Corruption 0% Temperature Cool (18) Movement Core (800) Ox15 Location -8/Mines Parts ------- > --- POWER (1) -------- (None) > --- PROPULSION (3) --- (None) > --- UTILITY (2) ------ High-capacity Storage Unit > --- WEAPON (3) ------- Heavy Assault Rifle Shotgun Mini Grenade Launcher > --- INVENTORY (20) --- Ion Engine Nuclear Core Armored Wheel Sensor Array Sensor Array Seismic Detector Improved EM Shotgun Improved Light Cannon Improved Light Cannon Advanced EMP Blaster Grenade Launcher Mini Grenade Launcher Mini Grenade Launcher Mini Grenade Launcher Mining Laser Peak State ------------ > --- POWER ------------ Nuclear Core > --- PROPULSION ------- Armored Wheel Armored Wheel Armored Wheel > --- UTILITY ---------- High-capacity Storage Unit Seismic Detector > --- WEAPON ----------- Heavy Battle Rifle Improved Light Cannon Mini Grenade Launcher > --- INVENTORY -------- Ion Engine Nuclear Core Armored Wheel Sensor Array Sensor Array Improved EM Shotgun Heavy Assault Rifle Shotgun Improved Light Cannon Improved Light Cannon Advanced EMP Blaster Grenade Launcher Mini Grenade Launcher Mini Grenade Launcher Mini Grenade Launcher Mining Laser [Rating: 22] Favorites ----------- Power Nuclear Core Engine Ion Engine Power Core Nuclear Core Propulsion Armored Wheel Treads Light Treads Wheel Armored Wheel Utility Seismic Detector Device Seismic Detector Storage High-capacity Storage Unit Weapon Improved Light Cannon Energy Gun Small Laser Ballistic Gun Heavy Battle Rifle Ballistic Cannon Improved Light Cannon Launcher Mini Grenade Launcher Build | -11 -10 -9 -9 -9 -8 ------- Run | Yrd Mat Mat Min Exi Min Slots Evolved 2 | . . 2 . . . Power . | . . . . . . Propulsion 1 | . . 1 . . . Utility . | . . . . . . Weapon 1 | . . 1 . . . Parts Attached 28 | 6 10 8 2 . 2 Power 3 | 1 1 1 . . . Engine 1 | 1 . . . . . Core 2 | . 1 1 . . . Reactor . | . . . . . . Propulsion 5 | 2 2 1 . . . Treads 2 | 2 . . . . . Leg . | . . . . . . Wheel 3 | . 2 1 . . . Hover . | . . . . . . Flight . | . . . . . . Utility 5 | 1 4 . . . . Device 2 | . 2 . . . . Storage 3 | 1 2 . . . . Processor . | . . . . . . Hackware . | . . . . . . Protection . | . . . . . . Artifact . | . . . . . . Weapon 15 | 2 3 6 2 . 2 Energy Gun 2 | . 1 1 . . . Energy Cannon . | . . . . . . Ballistic Gun 5 | 2 . . 1 . 2 Ballistic Cannon 4 | . 2 1 1 . . Launcher 4 | . . 4 . . . Special Weapon . | . . . . . . Impact Weapon . | . . . . . . Slashing Weapon . | . . . . . . Piercing Weapon . | . . . . . . Special Melee Weapon . | . . . . . . Unidentified Prototypes 2 | . . 2 . . . Parts Lost 11 | . 4 . 1 . 6 Power 2 | . 1 . . . 1 Propulsion 3 | . . . . . 3 Utility 1 | . 1 . . . . Weapon 5 | . 2 . 1 . 2 Highest Loss Streak 4 | . 1 . 1 . 4 To Critical Strikes . | . . . . . . Average Slot Usage (%) 93 | . 88 96 99 100 76 Engine 2 | . 6 . . . . Core 9 | . 5 11 11 11 9 Treads 4 | . 15 . . . . Wheel 25 | . 12 33 33 33 21 Device 9 | . 7 11 11 11 2 Storage 11 | . 14 11 11 11 11 Energy Gun 1 | . 2 1 . . . Ballistic Gun 8 | . 9 . 9 11 11 Ballistic Cannon 13 | . 12 21 12 11 8 Launcher 6 | . . 6 11 11 11 Peak Build Rating 22 | 6 15 21 22 22 22 Average Rating 16 | 4 9 18 20 22 18 On Entrance 14 | . 6 15 19 22 22 Naked Turns . | . . . . . . Heaviest Build 59 | 13 54 59 57 57 57 Greatest Support 40 | 40 40 36 36 36 36 Greatest Overweight (x) 4 | 2 2 1 1 1 4 Average Overweight (x) . | . . 1 1 1 2 Largest Inventory Capacity 20 | 8 20 20 20 20 20 Average Capacity 17 | 7 12 20 20 20 20 Most Carried 17 | 3 15 16 16 16 17 Average Carried 12 | 2 7 14 15 16 16 Final Capacity 20 | 8 20 20 20 20 20 Final Carried 16 | 3 13 15 16 16 15 Class Distribution -------------------- 61% | Gunner 38% | Mutant Dominant Class ---------------- Mutant | -10/Materials Gunner | -9/Materials Gunner | -9/Mines Gunner | -9/Exiles Gunner | -8/Mines Resources | -11 -10 -9 -9 -9 -8 ----------- Run | Yrd Mat Mat Min Exi Min Matter Collected 1336 | 223 298 275 182 . 358 Remotely . | . . . . . . Salvage Created 1358 | . 436 397 153 . 372 Parts 75 | . 23 20 11 . 21 Haulers Intercepted . | . . . . . . Recyclers Shooed 2 | . 1 1 . . . Parts Field Recycled . | . . . . . . Retrieved Matter . | . . . . . . Parts Self-Destructed . | . . . . . . Prevented . | . . . . . . Kills | -11 -10 -9 -9 -9 -8 ------- Run | Yrd Mat Mat Min Exi Min Combat Hostiles Destroyed 47 | . 12 12 6 . 17 Guns 14 | . 6 . . . 8 Cannons 18 | . 6 6 3 . 3 AOE 15 | . . 6 3 . 6 Classes Destroyed 8 | . 3 2 1 . 2 Worker 1 | . . . . . 1 Watcher 3 | . 2 1 . . . Swarmer 14 | . 3 1 . . 10 Grunt 27 | . 9 8 5 . 5 Brawler 1 | . . 1 . . . Duelist 2 | . . . 1 . 1 Sentry 2 | . . 2 . . . Hunter 1 | . . . . . 1 Best Kill Streak 7 | . 3 6 3 . 7 Combat Bots Only 7 | . 3 6 3 . 7 Max Kills in Single Turn 3 | . 1 3 2 . 3 Gunslinging . | . . . . . . Exploded 3 | . . 3 1 . 3 Melee . | . . . . . . Uniques/NPCs Destroyed . | . . . . . . Combat | -11 -10 -9 -9 -9 -8 -------- Run | Yrd Mat Mat Min Exi Min Hostile Shots Fired 257 | . 106 27 24 . 100 Missed 78 | . 40 11 6 . 21 Damage Taken 2098 | . 765 267 252 . 814 Core 500 | . 97 120 110 . 173 Absorbed by Shields . | . . . . . . Core Remaining (%) 80 | 100 61 . . . . Volleys Fired 147 | . 76 22 12 . 37 Largest 3 | . 2 3 3 . 3 Hottest 108 | . 78 108 108 . 102 Shots Fired 263 | . 115 52 25 . 71 Gun 123 | . 79 . 3 . 41 Cannon 114 | . 36 36 18 . 24 Launcher 26 | . . 16 4 . 6 Special . | . . . . . . Kinetic 213 | . 91 36 21 . 65 Thermal 24 | . 24 . . . . Explosive 19 | . . 9 4 . 6 Electromagnetic 7 | . . 7 . . . Robot Hit Streak 12 | . 7 7 5 . 12 Robot Miss Streak 6 | . 6 3 2 . 4 Penetration Max . | . . . . . . Secondary Targets . | . . . . . . Shots Hit Robots 130 | . 56 24 12 . 38 Core Hits 75 | . 25 15 8 . 27 Critical Kills . | . . . . . . Critical Parts Destroyed . | . . . . . . Critical Strikes 3 | . 1 1 . . 1 Blast 3 | . 1 1 . . 1 Melee Attacks . | . . . . . . Impact . | . . . . . . Slashing . | . . . . . . Piercing . | . . . . . . Sneak Attacks . | . . . . . . Combat Hostiles . | . . . . . . Follow-up Attacks . | . . . . . . Damage Inflicted 3582 | . 734 1054 497 . 1297 Guns 920 | . 427 . 22 . 471 Cannons 1019 | . 307 350 170 . 192 Explosions 1643 | . . 704 305 . 634 Melee . | . . . . . . Ramming . | . . . . . . Kinetic 1774 | . 569 350 192 . 663 Thermal 165 | . 165 . . . . Explosive 1385 | . . 446 305 . 634 Electromagnetic 258 | . . 258 . . . Impact . | . . . . . . Slashing . | . . . . . . Piercing . | . . . . . . Highest Corruption . | . . . . . . Average Corruption . | . . . . . . Corruption Purged . | . . . . . . Corruption Blocked . | . . . . . . Overload Shots . | . . . . . . Overflow Damage 34 | . 5 16 . . 13 Projectiles 14 | . 5 9 . . . Explosions 20 | . . 7 . . 13 Melee . | . . . . . . Knockbacks 11 | . 5 2 2 . 2 Impact . | . . . . . . Kinetic 11 | . 5 2 2 . 2 Secondary . | . . . . . . Self-Inflicted Damage 70 | . . 70 . . . Shots 2 | . . 2 . . . Rammed . | . . . . . . Targets Rammed . | . . . . . . Kicked . | . . . . . . Crushed . | . . . . . . Highest Temperature 171 | . 96 171 144 . 102 Average Temperature 41 | . 28 49 78 . 29 Received Heat Transfer 720 | . 360 111 105 . 144 Siege Activations . | . . . . . . Robots Corrupted . | . . . . . . Combat Hostiles . | . . . . . . Parts Fried . | . . . . . . Impact Corruptions . | . . . . . . Robots Melted . | . . . . . . Combat Hostiles . | . . . . . . Parts Melted . | . . . . . . Heat Transferred 375 | . 375 . . . . Parts Sabotaged . | . . . . . . Parts Stolen . | . . . . . . Parts Stripped . | . . . . . . Power Chain Reactions 1 | . . 1 . . . Alert | -11 -10 -9 -9 -9 -8 ------- Run | Yrd Mat Mat Min Exi Min Peak Influence 521 | . 232 508 285 . 521 Initial 128 | . . 50 128 . . Average 154 | . 73 255 159 . 239 Maximum Alert Level 2 | . 1 2 1 . 2 Low Security (%) 65 | 100 79 30 82 . 43 Level 1 32 | . 20 66 17 . 39 Level 2 2 | . . 2 . . 17 Level 3 . | . . . . . . Level 4 . | . . . . . . Level 5 . | . . . . . . High Security . | . . . . . . Max Security . | . . . . . . Squads Dispatched 7 | . 4 2 . . 1 Investigation 3 | . 2 1 . . . Extermination . | . . . . . . Reinforcement 4 | . 2 1 . . 1 Assault . | . . . . . . Garrison . | . . . . . . Intercept . | . . . . . . Searches Triggered . | . . . . . . Construction Impeded 1 | . . . . . 1 Haulers Reinforced . | . . . . . . Active Scanning Responses . | . . . . . . Cargo Convoy Interrupts . | . . . . . . Stealth | -11 -10 -9 -9 -9 -8 --------- Run | Yrd Mat Mat Min Exi Min Distress Signals . | . . . . . . Communications Jammed . | . . . . . . Distress Signals . | . . . . . . Times Spotted 62 | . 19 15 6 . 22 Peak Tracking Total 6 | . 4 4 3 . 6 Tactical Retreats 3 | . . . . . 3 Traps | -11 -10 -9 -9 -9 -8 ------- Run | Yrd Mat Mat Min Exi Min Traps Triggered 3 | . 2 1 . . . Indirectly 1 | . . 1 . . . Trap Hack Attempts . | . . . . . . Triggered . | . . . . . . Disarmed . | . . . . . . Reprogrammed . | . . . . . . Reused . | . . . . . . Traps Extracted . | . . . . . . Installed . | . . . . . . Triggered . | . . . . . . Machines | -11 -10 -9 -9 -9 -8 ---------- Run | Yrd Mat Mat Min Exi Min Machines Disabled 7 | . 3 3 . . 1 Max in Single Turn 2 | . 2 1 . . 1 Machines Repaired . | . . . . . . Machines Dismantled . | . . . . . . Machines Sabotaged . | . . . . . . Overloaded Fab Kills . | . . . . . . Hacking | -11 -10 -9 -9 -9 -8 --------- Run | Yrd Mat Mat Min Exi Min Machines Accessed 5 | . . . 1 4 . Terminals 1 | . . . 1 . . Fabricators . | . . . . . . Repair Stations . | . . . . . . Recycling Units . | . . . . . . Scanalyzers . | . . . . . . Garrison Access . | . . . . . . Total Hacks 7 | . . . 3 4 . Successful 7 | . . . 3 4 . Failed . | . . . . . . Catastrophic . | . . . . . . Database Lockouts . | . . . . . . Manual . | . . . . . . Terminals 3 | . . . 3 . . Fabricators . | . . . . . . Repair Stations . | . . . . . . Recycling Units . | . . . . . . Scanalyzers . | . . . . . . Garrison Access . | . . . . . . Terminal Hacks 7 | . . . 3 4 . Record 7 | . . . 3 4 . Fabricator Hacks . | . . . . . . Repair Station Hacks . | . . . . . . Recycling Unit Hacks . | . . . . . . Scanalyzer . | . . . . . . Garrison Access Hacks . | . . . . . . Unauthorized Hacks . | . . . . . . Terminals . | . . . . . . Fabricators . | . . . . . . Repair Stations . | . . . . . . Recycling Units . | . . . . . . Scanalyzers . | . . . . . . Garrison Access . | . . . . . . Data Cores Recovered . | . . . . . . Used . | . . . . . . Hacking Detections . | . . . . . . Full Trace Events . | . . . . . . Feedback Events . | . . . . . . Feedback Blocked . | . . . . . . Robot Schematics Acquired . | . . . . . . Robots Built . | . . . . . . Authchips . | . . . . . . Time . | . . . . . . Total Robot Build Rating . | . . . . . . Part Schematics Acquired . | . . . . . . Parts Built . | . . . . . . Authchips . | . . . . . . Time . | . . . . . . Total Part Build Rating . | . . . . . . Parts Repaired . | . . . . . . Time . | . . . . . . Parts Recycled . | . . . . . . Recycled Matter . | . . . . . . Retrieved Matter . | . . . . . . Retrieved Components . | . . . . . . Parts Scanalyzed . | . . . . . . Part Schematics Acquired . | . . . . . . Parts Damaged . | . . . . . . Bothacking | -11 -10 -9 -9 -9 -8 ------------ Run | Yrd Mat Mat Min Exi Min Used RIF Installer . | . . . . . . Robots Hacked . | . . . . . . Non-combat . | . . . . . . Combat . | . . . . . . Robot Hacks Applied . | . . . . . . Relay Couplers Released . | . . . . . . Fabnet Peak Effective % . | . . . . . . Robots Rewired . | . . . . . . Allies Hacked . | . . . . . . Hacks Repelled . | . . . . . . Allies | -11 -10 -9 -9 -9 -8 -------- Run | Yrd Mat Mat Min Exi Min Total Allies . | . . . . . . Largest Group . | . . . . . . Highest-Rated Group . | . . . . . . Highest-Rated Ally . | . . . . . . Total Orders . | . . . . . . Ally Attacks . | . . . . . . Total Damage . | . . . . . . Kills . | . . . . . . Allies Corrupted . | . . . . . . Allies Melted . | . . . . . . Intel | -11 -10 -9 -9 -9 -8 ------- Run | Yrd Mat Mat Min Exi Min Robot Analysis Total . | . . . . . . Derelict Logs Recovered 1 | . . . 1 . . Drone Launches . | . . . . . . Drone Recoveries . | . . . . . . Exploration | -11 -10 -9 -9 -9 -8 ------------- Run | Yrd Mat Mat Min Exi Min Turns Passed 4226 | 99 1227 768 773 961 398 Spaces Moved 3304 | 59 738 654 695 916 242 Core 13 | 13 . . . . . Treads 381 | 46 335 . . . . Legs . | . . . . . . Wheels 2910 | . 403 654 695 916 242 Hover . | . . . . . . Flight . | . . . . . . Fastest Speed 50 | 50 90 105 105 105 105 Average Speed 112 | 150 132 105 105 105 120 Slowest Speed 160 | 160 160 105 105 105 150 Overloaded Moves . | . . . . . . Propulsion Burnouts . | . . . . . . Robots Hopped . | . . . . . . Cave-ins Triggered . | . . . . . . Exploration Rate (%) 57 | 4 87 40 91 93 29 Regions Visited 5 Branch Regions 3 Pre-discovered Areas . | . . . . . . Known Exits Taken . | . . . . . . Unknown Exits Taken 5 | 1 1 1 1 1 . Scrap Searched 1 | . . . 1 . . Spaces Dug . | . . . . . . Terrain Destroyed 152 | . 5 50 34 . 63 Melee . | . . . . . . Projectile 17 | . 5 3 4 . 5 AOE 135 | . . 47 30 . 58 Terrain Rammed . | . . . . . . Walls Destroyed . | . . . . . . Machines Disabled . | . . . . . . Actions | -11 -10 -9 -9 -9 -8 --------- Run | Yrd Mat Mat Min Exi Min Total 3554 | 67 884 690 716 915 282 Wait 42 | . 36 . 6 . . Move 3299 | 58 737 653 694 915 242 Hop . | . . . . . . Pick Up 21 | 3 14 3 1 . . Fast Attach 15 | 6 7 1 1 . . Attach 9 | . 2 4 1 . 2 Detach 9 | . 4 3 1 . 1 Swap 4 | . 1 3 . . . Drop 8 | . 7 1 . . . Fire 147 | . 76 22 12 . 37 Melee . | . . . . . . Ram . | . . . . . . Kick . | . . . . . . Crush . | . . . . . . Escape Stasis . | . . . . . . Rewire . | . . . . . . Trap . | . . . . . . Miscellaneous . | . . . . . . Route ------- -11/Scrapyard -10/Materials (discovered 4 exits: [*Mat x3] / [*Min]) -9/Materials (discovered 2 exits: [*Mat] / *Min) -9/Mines (discovered 3 exits: [*Mat x2] / *Exi) -9/Exiles (discovered 2 exits: [*Min x2]) -8/Mines History --------- Turn | Location | Event 29 | -11/Scrapyard | Discovered new exit (range 14) 100 | -11/Scrapyard | Entered Materials 317 | -10/Materials | Build established: Mutant 545 | -10/Materials | Discovered new exit (range 10) 894 | -10/Materials | Discovered new exit (range 16) 1005 | -10/Materials | Discovered new exit (range 10) 1099 | -10/Materials | Discovered new exit (range 15) 1327 | -10/Materials | Entered another Materials area 1327 | -9/Materials | Evolved 2 slots: Propulsion x1, Weapon x1 1372 | -9/Materials | Discovered new exit (range 10) 1720 | -9/Materials | Discovered new exit (range 13) 1865 | -9/Materials | Build established: Gunner 2095 | -9/Materials | Entered Mines 2185 | -9/Mines | Met a Derelict bent on vengeance 2199 | -9/Mines | A weapon hastily lodged in a ceiling crevice suddenly fell to the ground 2278 | -9/Mines | Found a hidden stash of uninstalled traps 2360 | -9/Mines | Core integrity fell below 50% 2457 | -9/Mines | Learned Materials emergency access door positions 2457 | -9/Mines | Discovered new exit (range 5) 2800 | -9/Mines | Discovered new exit (range 9) 2810 | -9/Mines | Deemed a non-threat by the Exiles lab entrance 2811 | -9/Mines | Discovered new exit (range 5) 2868 | -9/Mines | Entered Exiles 2868 | -9/Exiles | Found Exiles lab abandoned 2917 | -9/Exiles | Discovered new exit (range 15) 3075 | -9/Exiles | Discovered new exit (range 14) 3829 | -9/Exiles | Entered Mines 4128 | -8/Mines | Core integrity fell below 20% 4189 | -8/Mines | Destroyed 7 combat bots 4219 | -8/Mines | Lost 4 parts (1p1n2w) 4227 | -8/Mines | Destroyed by G-47 Trooper with Particle Gun Last Messages --------------- 04155_ Destroyed Flight Unit. 04157_ S-10 Pest destroyed. 04163_ Acquired 26 matter. 04166_ Hvy. Battle Rifle destroyed. 04168_ S-10 Pest destroyed. 04173_ Acquired 19 matter. 04182_ Acquired 8 matter. 04185_ Acquired 12 matter. 04188_ Nuclear Core destroyed. 04197_ K-01 Serf collects debris. 04198_ K-01 Serf destroyed. 04199_ ALERT: Construction progress impeded, dispatching reinforcements to local area. 04202_ G-50 Soldier destroyed. 04203_ The unstable cave ceiling collapses. 04212_ Acquired 36 matter. 04214_ Acquired 8 matter. 04222_ U-05 Engineer lays Concrete. 04224_ U-05 Engineer builds a Wall. 04224_ Arm. Wheel destroyed. Map ----- +----------------------------------------------------+ | ?????????????????????????####????????????????????? | | ????????????????????????## ##???????????????????? | | ????????????????????????# ###########??####???? | | ????????????????????????# #?## ##??# | | ????????????????????????## ### ### #### | | ?????????????????????????## #?# ## | | ???????????????#??????????## #?###### | | ??????# ## ####?????###### ##??????#### | | ????????? """ #?????#[#### ##??????????## | | ????????? """ ##### #?????#= [= =#????????????### | | ??????????????????# ####??#*##=#*#??????????????## | | ??????????????????# #??# #### ####????????????# | | ??????????????????#### #"## "#?# #????????????? | | ?????????????????????# =##?#### #????????????? | | ?????????????????###?###### ####??# #????????????? | | ????????????????## ### ## ##?# #????????????? | | ????????????????# # ###### ##???????????? | | ????????????????# ##??????????? | | ????????????????# ###???????## | | ????????????????## % #### ########## | | ?????????????????## # # ## | | ??????????????????#### # # # [ = | | ?????????????????????####u ##### [ # | | ??????????????????????## #???# " #### | | ????????????????####### ######## """ ##??? | | ????????????????# @ ## ##???? | | ????????????????# ##### r ### ####### ####????? | | ??????????????????????## ###?# #?????####???????? | | ???????????????????????# #???# #????????????????? | | ???????????????????????# #???# #????????????????? | | ???????????????????????# ???# #????????????????? | | ???????????????????#### ???# #????????????????? | | ???????????????????# % g #### ##???????????????? | | ???????????????????# ## g = #???????????????? | | ?????????????????????? ###### #???????????????? | | ??????????????????????## ?###?? #???????????????? | | ???????????????????????###?????? #???????????????? | | ???????????????????????????????? ???????????????? | | ????????????????????????????????##???????????????? | | ?????????????????????????????????????????????????? | | ?????????????????????????????????????????????????? | | ?????????????????????????????????????????????????? | | ?????????????????????????????????????????????????? | | ?????????????????????????????????????????????????? | | ?????????????????????????????????????????????????? | | ?????????????????????????????????????????????????? | | ?????????????????????????????????????????????????? | | ?????????????????????????????????????????????????? | | ?????????????????????????????????????????????????? | | ?????????????????????????????????????????????????? | +----------------------------------------------------+ Best States ------------- Heat Dissipation 28 Energy Generation 14 Energy Capacity 250 Matter Stores 300 Matter Capacity 300 Sight Range 16 Robot Scan Range 14 Terrain Scan Density 10 Evasion (%) 42 Recoil Reduction 2 Item Schematics ----------------- None Robot Schematics ------------------ None Fabricated ------------ Nothing Alien Tech Used ----------------- None Achievements -------------- None Challenges ------------ None Game ------ Seed AccelerationCompanionLattice Manual? 0 Play Time 00:41:50 Cumulative 15.6 hours Start 2024.10.20 @ 19:01:13 End 2024.10.20 @ 19:59:59 Sessions 1 Manual Loads 0 Difficulty Rogue Special Mode None Game No. 27 Rogue 27 Adventurer 0 Explorer 0 Win Type - Total 0 Types 0/0/0/0/0/0/0/0/0 Lore% 6 Gallery% 11 Achievement% 13 Wizard Run 0 Options --------- Layout 0 ASCII 0 Keyboard 1 Movement Numpad Keybinds 0 Fullscreen 1 Font 24/Smallcaps Map View 76x50 Zoom Use 0% Tactical HUD 1 Map Filters NONE Filters NONE Steam 1 RUN: 07aaf804-a51e-4a7e-8649-b2d6aaace03e